fUST/lending_fUST_20251122
["ID","MTS","AMOUNT","RATE_DAILY","PERIOD"]
[394653889,1763819438906,-500.0,7.862e-05,2]
[394653890,1763819438915,-500.0,7.862e-05,2]
[394653891,1763819438924,-586.55579752,7.862e-05,2]
[394653892,1763819438933,-500.0,7.862e-05,2]
[394653893,1763819438942,-500.0,7.862e-05,2]
[394653894,1763819438952,-500.0,7.862e-05,2]
[394653895,1763819438961,-500.0,7.862e-05,2]
[394653896,1763819438971,-500.0,7.862e-05,2]
[394653897,1763819438980,-500.0,7.862e-05,2]
[394653898,1763819438989,-500.0,7.862e-05,2]
[394653899,1763819438998,-500.0,7.862e-05,2]
[394653900,1763819439007,-500.0,7.862e-05,2]
[394653901,1763819439016,-500.0,7.862e-05,2]
[394653902,1763819439025,-500.0,7.862e-05,2]
[394653903,1763819439034,-500.0,7.862e-05,2]
[394653904,1763819439043,-500.0,7.862e-05,2]
[394653905,1763819439052,-500.0,7.862e-05,2]
[394653906,1763819439061,-500.0,7.862e-05,2]
[394653907,1763819439070,-500.0,7.862e-05,2]
[394653908,1763819439079,-500.0,7.862e-05,2]
[394653909,1763819439088,-500.0,7.862e-05,2]
[394653910,1763819439097,-500.0,7.862e-05,2]
[394653911,1763819439106,-945.66227747,7.863e-05,2]
[394653912,1763819439117,-166.8,7.863e-05,2]
[394653913,1763819439127,-500.0,7.865e-05,2]
[394653914,1763819439136,-500.0,7.865e-05,2]
[394653915,1763819439145,-500.0,7.865e-05,2]
[394653916,1763819439155,-500.0,7.865e-05,2]
[394653917,1763819439164,-500.0,7.865e-05,2]
[394653918,1763819439173,-500.0,7.865e-05,2]
[394653919,1763819439182,-500.0,7.865e-05,2]
[394653920,1763819439191,-500.0,7.865e-05,2]
[394653921,1763819439200,-500.0,7.865e-05,2]
[394653922,1763819439209,-244.36942884,7.865e-05,2]
[394653923,1763819439218,-151.0,7.866e-05,2]
[394653924,1763819439227,-186.37259886,7.866e-05,2]
[394653925,1763819439236,-151.0,7.866e-05,2]
[394653926,1763819439244,-160.40631476,7.866e-05,2]
[394653927,1763819439254,-163.59283424,7.866e-05,2]
[394653928,1763819439263,-179.55633826,7.866e-05,2]
[394653929,1763819439272,-151.0,7.866e-05,2]
[394653930,1763819439281,-202.54311564,7.866e-05,2]
[394653931,1763819439290,-500.0,7.866e-05,2]
[394653932,1763819439299,-153.46193984,7.866e-05,2]
[394653933,1763819439308,-154003.38675838,7.867e-05,2]
[394653934,1763819439347,-29685.92661183,7.867e-05,2]
[394653990,1763819440585,-7593.92923692,7.867e-05,2]
[394654003,1763819440699,-412308.92109898,7.867e-05,2]
[394654205,1763819975340,-360.0,7.632e-05,2]
[394654206,1763820082174,-150.0,7.61e-05,2]
[394654207,1763820082193,-150.0,7.687e-05,2]
[394654208,1763820093310,60.0,7.665e-05,2]
[394654258,1763820631813,-262.091,7.455e-05,2]
[394654259,1763820631822,-150.0,7.531e-05,2]
[394654260,1763820631832,-262.091,7.606e-05,2]
[394654261,1763820631841,-1200.0,7.741e-05,2]
[394654262,1763820631850,-219.0,7.742e-05,2]
[394654263,1763820631860,-300.0,7.742e-05,2]
[394654264,1763820631869,-1200.0,7.742e-05,2]
[394654266,1763820631878,-500.0,7.743e-05,2]
[394654268,1763820631887,-500.0,7.743e-05,2]
[394654270,1763820631897,-500.0,7.743e-05,2]
[394654271,1763820631906,-500.0,7.743e-05,2]
[394654272,1763820631915,-500.0,7.743e-05,2]
[394654273,1763820631924,-500.0,7.743e-05,2]
[394654274,1763820631933,-500.0,7.743e-05,2]
[394654275,1763820631942,-502.53661297,7.743e-05,2]
[394654276,1763820631951,-998.60195726,7.757e-05,2]
[394654277,1763820631960,-500.0,7.758e-05,2]
[394654278,1763820631969,-500.0,7.758e-05,2]
[394654279,1763820631978,-500.0,7.758e-05,2]
[394654280,1763820631987,-500.0,7.758e-05,2]
[394654281,1763820631996,-500.0,7.758e-05,2]
[394654282,1763820632005,-500.0,7.758e-05,2]
[394654283,1763820632014,-500.0,7.758e-05,2]
[394654284,1763820632023,-500.0,7.758e-05,2]
[394654285,1763820632032,-500.0,7.758e-05,2]
[394654286,1763820632042,-500.0,7.758e-05,2]
[394654287,1763820632051,-500.0,7.758e-05,2]
[394654288,1763820632060,-500.0,7.758e-05,2]
[394654289,1763820632069,-500.0,7.758e-05,2]
[394654290,1763820632078,-500.0,7.758e-05,2]
[394654291,1763820632087,-500.0,7.758e-05,2]
[394654292,1763820632096,-500.0,7.758e-05,2]
[394654293,1763820632106,-500.0,7.758e-05,2]
[394654294,1763820632115,-500.0,7.758e-05,2]
[394654295,1763820632124,-500.0,7.758e-05,2]
[394654296,1763820632133,-500.0,7.758e-05,2]
[394654297,1763820632142,-500.0,7.758e-05,2]
[394654298,1763820632152,-500.0,7.758e-05,2]
[394654299,1763820632161,-500.0,7.758e-05,2]
[394654300,1763820632170,-500.0,7.758e-05,2]
[394654301,1763820632179,-500.0,7.758e-05,2]
[394654302,1763820632188,-500.0,7.758e-05,2]
[394654303,1763820632197,-500.0,7.758e-05,2]
[394654304,1763820632206,-500.0,7.758e-05,2]
[394654305,1763820632215,-500.0,7.758e-05,2]
[394654306,1763820632224,-500.0,7.758e-05,2]
[394654307,1763820632233,-500.0,7.758e-05,2]
[394654308,1763820632242,-500.0,7.758e-05,2]
[394654309,1763820632251,-500.0,7.758e-05,2]
[394654310,1763820632260,-500.0,7.758e-05,2]
[394654311,1763820632269,-1197.20244456,7.758e-05,2]
[394654312,1763820632278,-1197.20244456,7.758e-05,2]
[394654313,1763820632287,-1197.20244456,7.758e-05,2]
[394654314,1763820632295,-1197.20244456,7.758e-05,2]
[394654315,1763820632304,-1197.20244456,7.758e-05,2]
[394654316,1763820632313,-1197.20244456,7.758e-05,2]
[394654317,1763820632322,-1197.20244456,7.758e-05,2]
[394654318,1763820632331,-1197.20244456,7.758e-05,2]
[394654319,1763820632340,-1197.20244456,7.758e-05,2]
[394654320,1763820632350,-1197.20244456,7.758e-05,2]
[394654321,1763820632359,-1197.20244456,7.758e-05,2]
[394654322,1763820632368,-1197.20244456,7.758e-05,2]
[394654323,1763820632377,-1197.20244456,7.758e-05,2]
[394654324,1763820632387,-1197.20244456,7.758e-05,2]
[394654325,1763820632396,-1197.20244455,7.758e-05,2]
[394654326,1763820632405,-1197.20244456,7.758e-05,2]
[394654327,1763820632414,-1197.20244456,7.758e-05,2]
[394654328,1763820632423,-1197.20244456,7.758e-05,2]
[394654329,1763820632432,-1197.20244456,7.758e-05,2]
[394654330,1763820632441,-1197.20244456,7.758e-05,2]
[394654331,1763820632450,-1197.20244456,7.758e-05,2]
[394654332,1763820632459,-1197.20244456,7.758e-05,2]
[394654333,1763820632468,-1197.20244456,7.758e-05,2]
[394654334,1763820632478,-1197.20244456,7.758e-05,2]
[394654335,1763820632487,-1197.20244456,7.758e-05,2]
[394654336,1763820632496,-1197.20244456,7.758e-05,2]
[394654337,1763820632505,-1189.22109492,7.758e-05,2]
[394654338,1763820632515,-1189.22109492,7.758e-05,2]
[394654339,1763820632525,-1189.22109492,7.758e-05,2]
[394654340,1763820632534,-1189.22109492,7.758e-05,2]
[394654341,1763820632543,-1189.22109492,7.758e-05,2]
[394654342,1763820632553,-1189.22109492,7.758e-05,2]
[394654343,1763820632562,-1189.22109492,7.758e-05,2]
[394654344,1763820632571,-1189.22109492,7.758e-05,2]
[394654345,1763820632581,-1189.22109492,7.758e-05,2]
[394654346,1763820632595,-1189.22109492,7.758e-05,2]
[394654347,1763820632604,-1189.22109492,7.758e-05,2]
[394654348,1763820632613,-1189.22109492,7.758e-05,2]
[394654349,1763820632622,-1189.22109492,7.758e-05,2]
[394654350,1763820632633,-1189.22109492,7.758e-05,2]
[394654351,1763820632642,-1189.22109492,7.758e-05,2]
[394654352,1763820632655,-1189.22109492,7.758e-05,2]
[394654353,1763820632665,-1189.22109492,7.758e-05,2]
[394654354,1763820632674,-1189.22109492,7.758e-05,2]
[394654355,1763820632682,-1189.22109492,7.758e-05,2]
[394654356,1763820632692,-1189.22109492,7.758e-05,2]
[394654357,1763820632703,-1189.22109492,7.758e-05,2]
[394654358,1763820632712,-1189.22109492,7.758e-05,2]
[394654359,1763820632723,-397.56180935,7.758e-05,2]
[394654360,1763820632734,-1189.22109492,7.758e-05,2]
[394654361,1763820632745,-1189.22109492,7.758e-05,2]
[394654362,1763820632754,-1189.22109492,7.758e-05,2]
[394654363,1763820632763,-1189.22109492,7.758e-05,2]
[394654364,1763820632775,-1189.22109492,7.758e-05,2]
[394654365,1763820632787,-1189.22109492,7.758e-05,2]
[394654366,1763820632795,-1189.22109492,7.758e-05,2]
[394654367,1763820632805,-1189.22109492,7.758e-05,2]
[394654368,1763820632814,-756.529822,7.758e-05,2]
[394654369,1763820632823,-607.73514766,7.76e-05,2]
[394654370,1763820632833,-500.0,7.76e-05,2]
[394654371,1763820632842,-500.0,7.76e-05,2]
[394654372,1763820632851,-500.0,7.76e-05,2]
[394654373,1763820632860,-321.05860019,7.76e-05,2]
[394654374,1763820632871,-500.0,7.76e-05,2]
[394654375,1763820632880,-500.0,7.76e-05,2]
[394654376,1763820632890,-500.0,7.76e-05,2]
[394654377,1763820632899,-500.0,7.76e-05,2]
[394654378,1763820632908,-361982.62328656,7.761e-05,2]
[394654417,1763820639987,-490.58396675,7.68e-05,2]
[394654644,1763820645957,-16039.20259828,7.68e-05,2]
[394654645,1763820645967,-2928.11847996,7.761e-05,2]
[394654647,1763821593249,-209.673,7.306e-05,2]
[394654648,1763821593272,-45.41803035,7.406e-05,2]
[394654686,1763821832286,-104.58196965,7.406e-05,2]
[394654687,1763821832298,-209.673,7.505e-05,2]
[394654688,1763821832307,-210.62946235,7.632e-05,2]
[394654695,1763821838087,-365.211432,7.556e-05,2]
[394654696,1763821838097,-611.04137681,7.632e-05,2]
[394654970,1763821846151,-378.32916084,7.632e-05,2]
[394654971,1763821846161,-300.0,7.632e-05,2]
[394654972,1763821846172,-500.0,7.633e-05,2]
[394654973,1763821846182,-500.0,7.633e-05,2]
[394654974,1763821846191,-500.0,7.633e-05,2]
[394654975,1763821846200,-500.0,7.633e-05,2]
[394654976,1763821846209,-386.62062406,7.633e-05,2]
[394654977,1763821846219,-500.0,7.633e-05,2]
[394654978,1763821846228,-500.0,7.633e-05,2]
[394654979,1763821846237,-250.0,7.653e-05,2]
[394654980,1763821846247,-250.0,7.653e-05,2]
[394654981,1763821846257,-250.0,7.653e-05,2]
[394654982,1763821846267,-250.0,7.653e-05,2]
[394654983,1763821846277,-250.0,7.653e-05,2]
[394654984,1763821846286,-250.0,7.653e-05,2]
[394654985,1763821846295,-250.0,7.653e-05,2]
[394654986,1763821846305,-250.0,7.653e-05,2]
[394654987,1763821846314,-250.0,7.653e-05,2]
[394654988,1763821846323,-250.0,7.653e-05,2]
[394654989,1763821846332,-500.0,7.657e-05,2]
[394654990,1763821846342,-500.0,7.657e-05,2]
[394654991,1763821846351,-500.0,7.657e-05,2]
[394654993,1763821846360,-174.74102013,7.657e-05,2]
[394654995,1763821846369,-500.0,7.657e-05,2]
[394654997,1763821846378,-500.0,7.657e-05,2]
[394654998,1763821846387,-500.0,7.657e-05,2]
[394654999,1763821846396,-500.0,7.657e-05,2]
[394655000,1763821846405,-500.0,7.657e-05,2]
[394655001,1763821846414,-500.0,7.657e-05,2]
[394655002,1763821846425,-500.0,7.657e-05,2]
[394655003,1763821846434,-545.92895174,7.657e-05,2]
[394655004,1763821846444,-500.0,7.657e-05,2]
[394655005,1763821846453,-500.0,7.657e-05,2]
[394655006,1763821846463,-500.0,7.657e-05,2]
[394655007,1763821846472,-500.0,7.657e-05,2]
[394655008,1763821846481,-500.0,7.657e-05,2]
[394655009,1763821846491,-500.0,7.657e-05,2]
[394655010,1763821846501,-500.0,7.657e-05,2]
[394655011,1763821846510,-500.0,7.657e-05,2]
[394655012,1763821846521,-500.0,7.657e-05,2]
[394655013,1763821846531,-144.68971094,7.657e-05,2]
[394655053,1763823032198,-150.0,7.191e-05,2]
[394655055,1763823032208,-150.0,7.338e-05,2]
[394655057,1763823032217,-167.738,7.407e-05,2]
[394655059,1763823032227,-211.40089796,7.433e-05,2]
[394655063,1763823032257,-399.41682301,7.433e-05,2]
[394655065,1763823032268,-186.09177763,7.433e-05,2]
[394655067,1763823032279,-313.90822237,7.433e-05,2]
[394655069,1763823032288,-309.18931048,7.433e-05,2]
[394655122,1763823038194,-190.81068952,7.433e-05,2]
[394655123,1763823038204,-300.0,7.456e-05,2]
[394655124,1763823038214,-248.88448357,7.456e-05,2]
[394655125,1763823038225,-51.11551643,7.456e-05,2]
[394655126,1763823038236,-300.0,7.456e-05,2]
[394655127,1763823038246,-500.0,7.457e-05,2]
[394655128,1763823038256,-500.0,7.457e-05,2]
[394655129,1763823038266,-42.37275582,7.457e-05,2]
[394655130,1763823038279,-457.62724418,7.457e-05,2]
[394655131,1763823038288,-253.60367466,7.457e-05,2]
[394655132,1763823038776,-246.39632534,7.457e-05,2]
[394655133,1763823038785,-529.12714109,7.457e-05,2]
[394655134,1763823038794,-500.0,7.457e-05,2]
[394655135,1763823038804,-428.23926373,7.457e-05,2]
[394655136,1763823038814,-500.0,7.457e-05,2]
[394655137,1763823038824,-500.0,7.457e-05,2]
[394655138,1763823038834,-500.0,7.457e-05,2]
[394655139,1763823038843,-624.37215532,7.457e-05,2]
[394655140,1763823038853,-459.53256266,7.458e-05,2]
[394655141,1763823038866,-268.61921822,7.458e-05,2]
[394655142,1763823038878,-3257.86920441,7.458e-05,2]
[394655143,1763823038893,-2903.51027038,7.458e-05,2]
[394655144,1763823038904,-1392.72177604,7.458e-05,2]
[394655145,1763823038917,-706.64386769,7.458e-05,2]
[394655146,1763823038929,-2326.24435221,7.458e-05,2]
[394655163,1763823040331,-690.42,7.458e-05,2]
[394655164,1763823040399,-653.57927617,7.458e-05,2]
[394655165,1763823040413,-7025.66988714,7.458e-05,2]
[394655173,1763823046433,-436.36671295,7.458e-05,2]
[394655175,1763823247905,1241.24044635,7.067e-05,2]
[394655176,1763823256106,1241.24044635,7.067e-05,2]
[394655177,1763823271096,556.83906245,7.067e-05,2]
[394655178,1763823278986,753.3066082,7.067e-05,2]
[394655179,1763823336443,1253.2297876,6.464e-05,2]
[394655180,1763823338074,-1241.24044635,7.138e-05,2]
[394655181,1763823338101,-150.0,7.247e-05,2]
[394655182,1763823338127,-1241.24044635,7.283e-05,2]
[394655183,1763823338152,-167.739,7.309e-05,2]
[394655184,1763823338178,-500.0,7.433e-05,2]
[394655185,1763823338204,-500.0,7.433e-05,2]
[394655186,1763823338229,-300.0,7.455e-05,2]
[394655187,1763823338256,-300.0,7.455e-05,2]
[394655188,1763823338281,-1200.0,7.455e-05,2]
[394655189,1763823338308,-300.0,7.455e-05,2]
[394655190,1763823338334,-300.0,7.455e-05,2]
[394655191,1763823338359,-500.0,7.456e-05,2]
[394655192,1763823338393,-500.0,7.456e-05,2]
[394655193,1763823338424,-500.0,7.456e-05,2]
[394655194,1763823338453,-500.0,7.456e-05,2]
[394655195,1763823338489,-500.0,7.456e-05,2]
[394655196,1763823338524,-417.50244185,7.456e-05,2]
[394655197,1763823338556,-500.0,7.456e-05,2]
[394655198,1763823338583,-500.0,7.456e-05,2]
[394655199,1763823338619,-500.0,7.456e-05,2]
[394655200,1763823338647,-500.0,7.456e-05,2]
[394655201,1763823338675,-500.0,7.456e-05,2]
[394655202,1763823338709,-500.0,7.456e-05,2]
[394655203,1763823338738,-500.0,7.456e-05,2]
[394655204,1763823338772,-500.0,7.456e-05,2]
[394655205,1763823338800,-500.0,7.456e-05,2]
[394655206,1763823338834,-500.0,7.456e-05,2]
[394655207,1763823338863,-500.0,7.456e-05,2]
[394655208,1763823338897,-500.0,7.456e-05,2]
[394655209,1763823338925,-500.0,7.456e-05,2]
[394655210,1763823338959,-500.0,7.456e-05,2]
[394655211,1763823338992,-500.0,7.456e-05,2]
[394655212,1763823339026,-500.0,7.456e-05,2]
[394655213,1763823339055,-500.0,7.456e-05,2]
[394655214,1763823339091,-555.14097163,7.456e-05,2]
[394655215,1763823339125,-500.0,7.456e-05,2]
[394655216,1763823339154,-500.0,7.456e-05,2]
[394655217,1763823339189,-500.0,7.456e-05,2]
[394655218,1763823339217,-500.0,7.456e-05,2]
[394655219,1763823339251,-500.0,7.456e-05,2]
[394655220,1763823339285,-500.0,7.456e-05,2]
[394655221,1763823339312,-500.0,7.456e-05,2]
[394655222,1763823339346,-500.0,7.456e-05,2]
[394655223,1763823339374,-500.0,7.456e-05,2]
[394655224,1763823339413,-500.0,7.456e-05,2]
[394655225,1763823339446,-500.0,7.456e-05,2]
[394655226,1763823339693,-336.33447621,7.456e-05,2]
[394655227,1763823339721,-500.0,7.456e-05,2]
[394655228,1763823339755,-1027.02226357,7.456e-05,2]
[394655229,1763823339790,-1027.02226357,7.456e-05,2]
[394655230,1763823339824,-1027.02226357,7.456e-05,2]
[394655231,1763823339862,-1027.02226357,7.456e-05,2]
[394655232,1763823339897,-1027.02226357,7.456e-05,2]
[394655233,1763823339932,-1027.02226357,7.456e-05,2]
[394655234,1763823339968,-1027.02226357,7.456e-05,2]
[394655235,1763823340002,-1027.02226357,7.456e-05,2]
[394655236,1763823340038,-1027.02226357,7.456e-05,2]
[394655237,1763823340072,-1027.02226357,7.456e-05,2]
[394655238,1763823340108,-1027.02226357,7.456e-05,2]
[394655239,1763823340142,-1027.02226357,7.456e-05,2]
[394655240,1763823340179,-1027.02226357,7.456e-05,2]
[394655241,1763823340213,-1027.02226357,7.456e-05,2]
[394655242,1763823340248,-1027.02226357,7.456e-05,2]
[394655243,1763823340280,-1027.02226357,7.456e-05,2]
[394655244,1763823340312,-1027.02226357,7.456e-05,2]
[394655245,1763823340347,-1027.02226357,7.456e-05,2]
[394655246,1763823340379,-1027.02226357,7.456e-05,2]
[394655247,1763823340413,-1027.02226357,7.456e-05,2]
[394655248,1763823340453,-1027.02226357,7.456e-05,2]
[394655249,1763823340490,-1027.02226357,7.456e-05,2]
[394655250,1763823340535,-1027.02226357,7.456e-05,2]
[394655251,1763823340575,-1027.02226357,7.456e-05,2]
[394655252,1763823340610,-1027.02226357,7.456e-05,2]
[394655253,1763823340645,-1027.02226357,7.456e-05,2]
[394655254,1763823340682,-1027.02226357,7.456e-05,2]
[394655255,1763823340716,-1027.02226357,7.456e-05,2]
[394655256,1763823340749,-1027.02226357,7.456e-05,2]
[394655257,1763823340782,-1027.02226357,7.456e-05,2]
[394655258,1763823340815,-1027.02226357,7.456e-05,2]
[394655259,1763823340849,-1027.02226357,7.456e-05,2]
[394655260,1763823340883,-1027.02226357,7.456e-05,2]
[394655261,1763823340917,-1027.02226357,7.456e-05,2]
[394655262,1763823340950,-1027.02226357,7.456e-05,2]
[394655263,1763823340983,-1027.02226357,7.456e-05,2]
[394655264,1763823341015,-1027.02226357,7.456e-05,2]
[394655265,1763823341051,-1027.02226357,7.456e-05,2]
[394655266,1763823341084,-1027.02226357,7.456e-05,2]
[394655267,1763823341119,-1027.02226357,7.456e-05,2]
[394655268,1763823341180,-1027.02226357,7.456e-05,2]
[394655269,1763823341236,-1027.02226357,7.456e-05,2]
[394655270,1763823341289,-1027.02226357,7.456e-05,2]
[394655271,1763823341341,-1027.02226357,7.456e-05,2]
[394655272,1763823341394,-1021.26739743,7.456e-05,2]
[394655273,1763823341443,-1021.26739743,7.456e-05,2]
[394655274,1763823341504,-1021.26739743,7.456e-05,2]
[394655275,1763823341548,-1021.26739743,7.456e-05,2]
[394655276,1763823341596,-1021.26739743,7.456e-05,2]
[394655277,1763823341645,-1021.26739743,7.456e-05,2]
[394655278,1763823341695,-1021.26739743,7.456e-05,2]
[394655279,1763823341752,-1021.26739743,7.456e-05,2]
[394655280,1763823341800,-1021.26739743,7.456e-05,2]
[394655281,1763823341846,-1021.26739743,7.456e-05,2]
[394655282,1763823341893,-1021.26739743,7.456e-05,2]
[394655283,1763823341941,-1021.26739743,7.456e-05,2]
[394655284,1763823341987,-1021.26739743,7.456e-05,2]
[394655285,1763823342031,-1021.26739743,7.456e-05,2]
[394655286,1763823342076,-1021.26739743,7.456e-05,2]
[394655287,1763823342120,-1021.26739743,7.456e-05,2]
[394655288,1763823342162,-1021.26739743,7.456e-05,2]
[394655289,1763823342204,-1021.26739743,7.456e-05,2]
[394655290,1763823342246,-1021.26739743,7.456e-05,2]
[394655291,1763823342290,-1017.86317278,7.456e-05,2]
[394655292,1763823342333,-1017.86317278,7.456e-05,2]
[394655293,1763823342375,-1017.86317278,7.456e-05,2]
[394655294,1763823342422,-1017.86317278,7.456e-05,2]
[394655295,1763823342467,-1017.86317278,7.456e-05,2]
[394655296,1763823342512,-1017.86317278,7.456e-05,2]
[394655297,1763823342546,-1200.0,7.456e-05,2]
[394655298,1763823342595,-500.0,7.457e-05,2]
[394655299,1763823342653,-500.0,7.457e-05,2]
[394655300,1763823342702,-500.0,7.457e-05,2]
[394655301,1763823342747,-500.0,7.457e-05,2]
[394655302,1763823342787,-500.0,7.457e-05,2]
[394655303,1763823342829,-500.0,7.457e-05,2]
[394655304,1763823342860,-500.0,7.457e-05,2]
[394655305,1763823342887,-500.0,7.457e-05,2]
[394655306,1763823342914,-177.24130288,7.457e-05,2]
[394655307,1763823342965,1017.86317278,7.456e-05,2]
[394655308,1763823343308,1017.86317278,7.456e-05,2]
[394655309,1763823343349,1017.86317278,7.456e-05,2]
[394655310,1763823343389,1017.86317278,7.456e-05,2]
[394655311,1763823344108,504.20856382,6.76e-05,2]
[394655312,1763823354205,-1164.58644272,7.383e-05,2]
[394655313,1763823354236,-869878.82287213,7.458e-05,2]
[394655314,1763823425227,-300.0,7.357e-05,2]
[394655315,1763823425258,-889700.0,7.358e-05,2]
[394655322,1763823682786,300.0,7.068e-05,2]
[394655326,1763823706239,300.0,7.068e-05,2]
[394655328,1763823728489,300.0,7.068e-05,2]
[394655329,1763823751651,300.0,7.068e-05,2]
[394655330,1763823758739,161.57,0.00021278,120]
[394655331,1763823774260,5000.0,0.0001333,9]
[394655332,1763823796966,835.79891848,0.0001333,9]
[394655334,1763823898878,4139.0,0.00021279,120]
[394655335,1763824050392,150.0,0.0001333,9]
[394655336,1763824066732,5000.0,0.0001333,9]
[394655337,1763824089498,2786.43711848,0.0001333,9]
[394655372,1763824232557,-150.0,7.303e-05,2]
[394655373,1763824232567,-300.0,7.358e-05,2]
[394655374,1763824232576,-463.77,7.409e-05,2]
[394655375,1763824232588,-5483.6941584,7.409e-05,2]
[394655376,1763824232598,-206.63723441,7.432e-05,2]
[394655377,1763824232608,-1200.0,7.857e-05,2]
[394655379,1763824232618,-300.0,7.858e-05,2]
[394655380,1763824232628,-300.0,7.858e-05,2]
[394655381,1763824232638,-300.0,7.858e-05,2]
[394655382,1763824232648,-1200.0,7.859e-05,2]
[394655383,1763824232658,-2514.6128656,7.86e-05,2]
[394655384,1763824232669,-300.0,8.233e-05,2]
[394655385,1763824232680,-300.0,8.233e-05,2]
[394655386,1763824232690,-300.0,8.233e-05,2]
[394655387,1763824232699,-300.0,8.233e-05,2]
[394655388,1763824232710,-300.0,8.233e-05,2]
[394655389,1763824232719,-300.0,8.233e-05,2]
[394655390,1763824232728,-300.0,8.233e-05,2]
[394655391,1763824232738,-300.0,8.233e-05,2]
[394655392,1763824232750,-300.0,8.233e-05,2]
[394655393,1763824232760,-300.0,8.233e-05,2]
[394655394,1763824232770,-300.0,8.233e-05,2]
[394655395,1763824232780,-300.0,8.233e-05,2]
[394655396,1763824232791,-300.0,8.233e-05,2]
[394655397,1763824232801,-300.0,8.233e-05,2]
[394655398,1763824232811,-300.0,8.233e-05,2]
[394655399,1763824232820,-500.0,8.277e-05,2]
[394655400,1763824232830,-151.0,8.277e-05,2]
[394655401,1763824232839,-500.0,8.277e-05,2]
[394655402,1763824232849,-211.51758205,8.277e-05,2]
[394655403,1763824232858,-156.61039112,8.277e-05,2]
[394655404,1763824232867,-152.17009784,8.277e-05,2]
[394655405,1763824232877,-600.0,8.336e-05,2]
[394655406,1763824232886,-5947.4641584,8.362e-05,2]
[394655407,1763824232897,-181.32644821,8.414e-05,2]
[394655408,1763824232906,-500.0,8.414e-05,2]
[394655409,1763824232915,-151.0,8.414e-05,2]
[394655410,1763824232924,-500.0,8.414e-05,2]
[394655411,1763824232934,-500.0,8.414e-05,2]
[394655412,1763824232943,-151.0,8.414e-05,2]
[394655413,1763824232953,-500.0,8.414e-05,2]
[394655414,1763824232962,-151.0,8.414e-05,2]
[394655415,1763824232972,-151.0,8.414e-05,2]
[394655416,1763824232981,-151.0,8.414e-05,2]
[394655417,1763824232991,-151.0,8.414e-05,2]
[394655418,1763824233000,-500.0,8.414e-05,2]
[394655419,1763824233009,-151.0,8.414e-05,2]
[394655420,1763824233018,-500.0,8.414e-05,2]
[394655421,1763824233028,-846.05935008,8.461e-05,2]
[394655422,1763824233037,-500.0,8.551e-05,2]
[394655423,1763824233046,-165.68442234,8.551e-05,2]
[394655424,1763824233056,-332.55298787,8.551e-05,2]
[394655425,1763824233066,-610.94507695,8.551e-05,2]
[394655426,1763824233075,-151.0,8.551e-05,2]
[394655427,1763824233085,-500.0,8.551e-05,2]
[394655428,1763824233094,-151.0,8.551e-05,2]
[394655429,1763824233103,-151.0,8.551e-05,2]
[394655430,1763824233113,-607.35541769,8.551e-05,2]
[394655431,1763824233122,-151.0,8.551e-05,2]
[394655432,1763824233131,-206.79271638,8.576e-05,2]
[394655433,1763824233141,-1200.0,8.643e-05,2]
[394655434,1763824233151,-204.0,8.644e-05,2]
[394655435,1763824233162,-306.39708956,8.662e-05,2]
[394655436,1763824233171,-500.0,8.688e-05,2]
[394655437,1763824233181,-151.0,8.688e-05,2]
[394655438,1763824233190,-427.41774473,8.688e-05,2]
[394655439,1763824233200,-209.35528443,8.688e-05,2]
[394655440,1763824233209,-240.34864098,8.688e-05,2]
[394655441,1763824233219,-151.0,8.688e-05,2]
[394655442,1763824233228,-765.54,8.725e-05,2]
[394655443,1763824233237,-169.3,8.725e-05,2]
[394655444,1763824233247,-169.3,8.725e-05,2]
[394655445,1763824233256,-169.3,8.725e-05,2]
[394655446,1763824233266,-169.3,8.725e-05,2]
[394655447,1763824233276,-169.3,8.725e-05,2]
[394655448,1763824233286,-169.3,8.725e-05,2]
[394655449,1763824233295,-265.53755189,8.825e-05,2]
[394655450,1763824233314,-158.96910837,8.825e-05,2]
[394655451,1763824233325,-254.48,8.834e-05,2]
[394655452,1763824233335,-254.48,8.843e-05,2]
[394655453,1763824233346,-254.48,8.851e-05,2]
[394655454,1763824233355,-500.0,8.95e-05,2]
[394655455,1763824233365,-500.0,8.96e-05,2]
[394655456,1763824233375,-444.67437629,8.96e-05,2]
[394655457,1763824233384,-720.0,9.17e-05,2]
[394655458,1763824233393,-500.0,9.2e-05,2]
[394655459,1763824233405,-177.0,9.303e-05,2]
[394655460,1763824233415,-500.0,9.312e-05,2]
[394655461,1763824233424,-157.50027132,9.312e-05,2]
[394655462,1763824233434,-370.70383069,9.312e-05,2]